fUST/lending_fUST_20250716
["ID","MTS","AMOUNT","RATE_DAILY","PERIOD"]
[372548535,1752679848051,-5028.57,0.0002,2]
[372548536,1752679848060,-460.0,0.0002,2]
[372548537,1752679848070,-582.88,0.0002,2]
[372548538,1752679848080,-460.0,0.0002,2]
[372548539,1752679848089,-469.31,0.0002,2]
[372548540,1752679848099,-1167.8,0.0002,2]
[372548541,1752679848109,-460.0,0.0002,2]
[372548542,1752679848118,-1440.99,0.0002,2]
[372548543,1752679848128,-460.0,0.0002,2]
[372548544,1752679848138,-506.15977138,0.0002,2]
[372548545,1752679848152,-467.63,0.0002,2]
[372548546,1752679848163,-578.3227966,0.0002,2]
[372548547,1752679848172,-1586.13,0.0002,2]
[372548548,1752679848190,-541.03,0.0002,2]
[372548549,1752679848204,-460.0,0.0002,2]
[372548550,1752679848214,-1000.0,0.00020021,2]
[372548552,1752679848224,-231.4097255,0.00020021,2]
[372548554,1752679848234,-25000.0,0.00020075,2]
[372548556,1752679848247,-151.0,0.00020075,2]
[372548557,1752679848257,-151.0,0.000201,4]
[372548558,1752679848267,-9021.18677679,0.00020107,2]
[372548559,1752679848276,-171.07656184,0.00020168,2]
[372548561,1752679848286,-286.03587,0.00020187,2]
[372548562,1752679848297,-180.40940772,0.00020205,2]
[372548563,1752679848308,-293.42668785,0.00020268,2]
[372548564,1752679848318,-1500.0,0.00020268,2]
[372548565,1752679848328,-1500.0,0.00020268,2]
[372548566,1752679848337,-1500.0,0.00020268,2]
[372548567,1752679848348,-500.0,0.00020273,2]
[372548568,1752679848358,-500.0,0.00020273,2]
[372548569,1752679848367,-500.0,0.00020273,2]
[372548570,1752679848378,-555.19917992,0.00020273,2]
[372548571,1752679848387,-500.0,0.00020273,2]
[372548572,1752679848397,-500.0,0.00020273,2]
[372548573,1752679848407,-500.0,0.00020273,2]
[372548574,1752679848417,-500.0,0.00020273,2]
[372548575,1752679848426,-501.27436585,0.00020273,2]
[372548576,1752679848437,-460.0,0.00020273,2]
[372548577,1752679848449,-460.0,0.00020273,2]
[372548578,1752679848458,-460.0,0.00020273,2]
[372548579,1752679848468,-460.0,0.00020273,2]
[372548580,1752679848478,-460.0,0.00020273,2]
[372548581,1752679848488,-460.0,0.00020273,2]
[372548582,1752679848499,-460.0,0.00020273,2]
[372548583,1752679848509,-312.03,0.00020273,2]
[372548584,1752679848519,-460.0,0.00020273,2]
[372548585,1752679848529,-460.0,0.00020273,2]
[372548586,1752679848700,-460.0,0.00020273,2]
[372548587,1752679848711,-617.79,0.00020273,2]
[372548588,1752679848721,-460.0,0.00020273,2]
[372548589,1752679848731,-460.0,0.00020273,2]
[372548590,1752679848741,-604.05,0.00020273,2]
[372548591,1752679848751,-460.0,0.00020273,2]
[372548592,1752679848765,-561.35,0.00020273,2]
[372548593,1752679848775,-460.0,0.00020273,2]
[372548594,1752679848785,-466.62,0.00020273,2]
[372548595,1752679848794,-164.1,0.00020273,2]
[372548596,1752679848805,-779.28,0.00020273,2]
[372548597,1752679848814,-598.88,0.00020273,2]
[372548598,1752679848824,-460.0,0.00020273,2]
[372548599,1752679848834,-460.0,0.00020273,2]
[372548600,1752679848844,-460.0,0.00020273,2]
[372548601,1752679848854,-460.0,0.00020273,2]
[372548602,1752679848864,-460.0,0.00020273,2]
[372548603,1752679848874,-939.24,0.00020273,2]
[372548604,1752679848884,-258.68158778,0.00020273,2]
[372548605,1752679848894,-460.0,0.00020273,2]
[372548606,1752679848904,-460.0,0.00020273,2]
[372548607,1752679848914,-460.0,0.00020273,2]
[372548608,1752679848924,-460.0,0.00020273,2]
[372548609,1752679848934,-460.0,0.00020273,2]
[372548610,1752679848946,-460.0,0.00020273,2]
[372548611,1752679848956,-460.0,0.00020273,2]
[372548612,1752679848966,-1185.85,0.00020273,2]
[372548613,1752679848976,-460.0,0.00020273,2]
[372548614,1752679848987,-460.0,0.00020273,2]
[372548615,1752679849011,-460.0,0.00020273,2]
[372548616,1752679849022,-460.0,0.00020273,2]
[372548617,1752679849032,-460.0,0.00020273,2]
[372548618,1752679849042,-531.90845831,0.00020273,2]
[372548619,1752679849052,-460.0,0.00020273,2]
[372548620,1752679849062,-460.0,0.00020273,2]
[372548621,1752679849072,-460.0,0.00020273,2]
[372548622,1752679849082,-460.0,0.00020273,2]
[372548623,1752679849091,-460.0,0.00020273,2]
[372548624,1752679849101,-1429.97,0.00020273,2]
[372548625,1752679849111,-460.0,0.00020273,2]
[372548626,1752679849120,-460.0,0.00020273,2]
[372548627,1752679849130,-460.0,0.00020273,2]
[372548628,1752679849139,-844.39,0.00020273,2]
[372548629,1752679849148,-987.04,0.00020273,2]
[372548630,1752679849158,-594.46,0.00020273,2]
[372548631,1752679849169,-460.0,0.00020273,2]
[372548632,1752679849179,-460.0,0.00020273,2]
[372548633,1752679849189,-460.0,0.00020273,2]
[372548634,1752679849200,-419.95376447,0.00020273,2]
[372548635,1752679849210,-460.0,0.00020273,2]
[372548636,1752679849220,-460.0,0.00020273,2]
[372548637,1752679849232,-460.0,0.00020273,2]
[372548638,1752679849242,-5117.18,0.00020273,2]
[372548639,1752679849252,-778.65,0.00020273,2]
[372548640,1752679849263,-460.0,0.00020273,2]
[372548641,1752679849273,-471.95,0.00020273,2]
[372548642,1752679849284,-10006.83,0.00020273,2]
[372548643,1752679849304,-506.45,0.00020273,2]
[372548644,1752679849313,-2438.56,0.00020273,2]
[372548645,1752679849324,-687.27,0.00020273,2]
[372548646,1752679849333,-597.54313279,0.00020273,2]
[372548647,1752679849343,-460.0,0.00020273,2]
[372548648,1752679849353,-460.0,0.00020273,2]
[372548649,1752679849363,-521.65,0.00020273,2]
[372548650,1752679849373,-4147.13,0.00020273,2]
[372548651,1752679849383,-6962.62,0.00020273,2]
[372548652,1752679849392,-460.0,0.00020273,2]
[372548653,1752679849403,-460.0,0.00020273,2]
[372548654,1752679849413,-959.76,0.00020273,2]
[372548655,1752679849423,-460.0,0.00020273,2]
[372548656,1752679849433,-460.0,0.00020273,2]
[372548657,1752679849443,-2589.89,0.00020273,2]
[372548658,1752679849455,-3564.08,0.00020273,2]
[372548659,1752679849465,-460.0,0.00020273,2]
[372548660,1752679849475,-460.0,0.00020273,2]
[372548661,1752679849485,-1879.23,0.00020273,2]
[372548662,1752679849494,-1196.19,0.00020273,2]
[372548663,1752679849504,-460.0,0.00020273,2]
[372548664,1752679849514,-209.94035139,0.00020273,2]
[372548665,1752679849524,-460.0,0.00020273,2]
[372548666,1752679849534,-13889.83,0.00020273,2]
[372548667,1752679849544,-2089.21,0.00020273,2]
[372548668,1752679849554,-598.15789059,0.00020273,2]
[372548669,1752679849564,-460.0,0.00020273,2]
[372548670,1752679849573,-460.0,0.00020273,2]
[372548671,1752679849583,-460.0,0.00020273,2]
[372548672,1752679849593,-864.03,0.00020273,2]
[372548673,1752679849603,-464.03,0.00020273,2]
[372548674,1752679849614,-460.0,0.00020273,2]
[372548675,1752679849625,-460.0,0.00020273,2]
[372548676,1752679849634,-460.0,0.00020273,2]
[372548677,1752679849644,-460.0,0.00020273,2]
[372548678,1752679849655,-942.0,0.00020273,2]
[372548679,1752679849665,-460.0,0.00020273,2]
[372548680,1752679849680,-1156.65,0.00020273,2]
[372548681,1752679849690,-460.0,0.00020273,2]
[372548682,1752679849705,-564.35,0.00020273,2]
[372548683,1752679849715,-460.0,0.00020273,2]
[372548684,1752679849724,-431.42491962,0.00020273,2]
[372548685,1752679849734,-460.0,0.00020273,2]
[372548686,1752679849744,-5710.44,0.00020273,2]
[372548687,1752679849756,-9435.4,0.00020273,2]
[372548688,1752679849766,-460.0,0.00020273,2]
[372548689,1752679849776,-460.0,0.00020273,2]
[372548690,1752679849786,-1063.71,0.00020273,2]
[372548691,1752679849796,-460.0,0.00020273,2]
[372548692,1752679849805,-4062.86,0.00020273,2]
[372548693,1752679849816,-460.0,0.00020273,2]
[372548694,1752679849826,-460.0,0.00020273,2]
[372548695,1752679849836,-460.0,0.00020273,2]
[372548696,1752679849846,-1081.66,0.00020273,2]
[372548697,1752679849855,-1067.68,0.00020273,2]
[372548698,1752679849866,-801.73,0.00020273,2]
[372548699,1752679849876,-460.0,0.00020273,2]
[372548700,1752679849886,-460.0,0.00020273,2]
[372548701,1752679849896,-801.73,0.00020273,2]
[372548702,1752679849907,-662.38,0.00020273,2]
[372548703,1752679849916,-652.86,0.00020273,2]
[372548704,1752679849926,-460.0,0.00020273,2]
[372548705,1752679849936,-1058.85,0.00020273,2]
[372548706,1752679849948,-917.58,0.00020273,2]
[372548707,1752679849958,-5295.6,0.00020273,2]
[372548708,1752679849967,-4731.5,0.00020273,2]
[372548709,1752679849977,-1895.02,0.00020273,2]
[372548710,1752679849986,-460.0,0.00020273,2]
[372548711,1752679849996,-3263.9,0.00020273,2]
[372548712,1752679850006,-2186.29,0.00020273,2]
[372548713,1752679850016,-460.0,0.00020273,2]
[372548714,1752679850026,-460.0,0.00020273,2]
[372548715,1752679850036,-460.0,0.00020273,2]
[372548716,1752679850046,-5028.57,0.00020273,2]
[372548717,1752679850056,-460.0,0.00020273,2]
[372548718,1752679850065,-582.88,0.00020273,2]
[372548719,1752679850075,-460.0,0.00020273,2]
[372548720,1752679850085,-469.31,0.00020273,2]
[372548721,1752679850095,-1167.8,0.00020273,2]
[372548722,1752679850105,-460.0,0.00020273,2]
[372548723,1752679850115,-1440.99,0.00020273,2]
[372548724,1752679850124,-465.09735393,0.00020273,2]
[372548725,1752679850134,-467.63,0.00020273,2]
[372548726,1752679850144,-1586.13,0.00020273,2]
[372548727,1752679850160,-541.03,0.00020273,2]
[372548728,1752679850169,-460.0,0.00020273,2]
[372548729,1752679850179,-160.0,0.00020309,2]
[372548730,1752679850189,-9021.18677679,0.00020314,3]
[372548731,1752679850203,-329.62253604,0.00020318,2]
[372548732,1752679850213,-214.40824756,0.00020327,3]
[372548733,1752679850223,-922.86,0.00020327,3]
[372548734,1752679850233,-461.42,0.00020327,3]
[372548735,1752679850243,-447.3,0.00020327,3]
[372548736,1752679850252,-230.8109288,0.00020374,2]
[372548737,1752679850263,-772.32414676,0.0002038,2]
[372548738,1752679850272,-12605.49131908,0.0002038,2]
[372548739,1752679850284,-160.0,0.0002038,2]
[372548740,1752679850294,-160.0,0.0002038,2]
[372548741,1752679850304,-160.0,0.0002038,2]
[372548742,1752679850314,-214.40824756,0.0002038,2]
[372548743,1752679850323,-838.99048831,0.0002038,2]
[372548744,1752679850333,-160.0,0.0002038,2]
[372548745,1752679850343,-160.0,0.0002038,2]
[372548746,1752679850352,-160.0,0.0002038,2]
[372548747,1752679850362,-215.5496034,0.0002038,2]
[372548748,1752679850372,-525.58295679,0.0002038,2]
[372548749,1752679850381,-160.0,0.0002038,2]
[372548750,1752679850391,-476.07036022,0.0002038,2]
[372548751,1752679850401,-821.52001914,0.00020448,2]
[372548752,1752679850411,-895.35153117,0.00020493,2]
[372548753,1752679850420,-45344.49308349,0.00020512,2]
[372548754,1752679850583,-2970.0,0.00020512,2]
[372548755,1752679850600,-121061.87864081,0.00020512,2]
[372548756,1752679850610,-642.9705649,0.00020514,2]
[372548757,1752679850620,-1000.0,0.00020521,2]
[372548758,1752679850629,-500.0,0.00020521,2]
[372548759,1752679850638,-1015.29927543,0.00020521,2]
[372548760,1752679850647,-504.22089586,0.00020521,2]
[372548761,1752679850656,-9021.18677679,0.00020521,3]
[372548762,1752679850665,-569.43791201,0.00020547,2]
[372548763,1752679850675,-460.0,0.00020547,2]
[372548764,1752679850684,-460.0,0.00020547,2]
[372548765,1752679850701,-460.0,0.00020547,2]
[372548766,1752679850711,-409.46119814,0.00020547,2]
[372548767,1752679850720,-460.0,0.00020547,2]
[372548768,1752679850731,-460.0,0.00020547,2]
[372548769,1752679850741,-460.0,0.00020547,2]
[372548770,1752679850750,-460.0,0.00020547,2]
[372548771,1752679850760,-617.79,0.00020547,2]
[372548772,1752679850771,-460.0,0.00020547,2]
[372548773,1752679850781,-460.0,0.00020547,2]
[372548774,1752679850791,-460.0,0.00020547,2]
[372548775,1752679850801,-561.35,0.00020547,2]
[372548776,1752679850811,-460.0,0.00020547,2]
[372548777,1752679850821,-466.62,0.00020547,2]
[372548778,1752679850831,-779.28,0.00020547,2]
[372548779,1752679850840,-460.0,0.00020547,2]
[372548780,1752679850851,-460.0,0.00020547,2]
[372548781,1752679850861,-460.0,0.00020547,2]
[372548782,1752679850871,-460.0,0.00020547,2]
[372548783,1752679850880,-939.24,0.00020547,2]
[372548784,1752679850890,-299.79826105,0.00020547,2]
[372548785,1752679850901,-460.0,0.00020547,2]
[372548786,1752679850911,-460.0,0.00020547,2]
[372548787,1752679850921,-460.0,0.00020547,2]
[372548788,1752679850932,-460.0,0.00020547,2]
[372548789,1752679850942,-1185.85,0.00020547,2]
[372548790,1752679850954,-460.0,0.00020547,2]
[372548791,1752679850964,-460.0,0.00020547,2]
[372548792,1752679850974,-460.0,0.00020547,2]
[372548793,1752679850983,-460.0,0.00020547,2]
[372548794,1752679850993,-460.0,0.00020547,2]
[372548795,1752679851003,-452.79079048,0.00020547,2]
[372548796,1752679851012,-460.0,0.00020547,2]
[372548797,1752679851022,-460.0,0.00020547,2]
[372548798,1752679851032,-460.0,0.00020547,2]
[372548799,1752679851042,-460.0,0.00020547,2]
[372548800,1752679851052,-1429.97,0.00020547,2]
[372548801,1752679851061,-517.48178713,0.00020547,2]
[372548802,1752679851071,-460.0,0.00020547,2]
[372548803,1752679851080,-460.0,0.00020547,2]
[372548804,1752679851091,-844.39,0.00020547,2]
[372548805,1752679851100,-987.04,0.00020547,2]
[372548806,1752679851109,-594.46,0.00020547,2]
[372548807,1752679851119,-274.52,0.00020547,2]
[372548808,1752679851128,-460.0,0.00020547,2]
[372548809,1752679851137,-460.0,0.00020547,2]
[372548810,1752679851268,-460.0,0.00020547,2]
[372548811,1752679851278,-460.0,0.00020547,2]
[372548812,1752679851288,-460.0,0.00020547,2]
[372548813,1752679851297,-5117.18,0.00020547,2]
[372548814,1752679851307,-778.65,0.00020547,2]
[372548815,1752679851317,-460.0,0.00020547,2]
[372548816,1752679851327,-10006.83,0.00020547,2]
[372548817,1752679851337,-471.95,0.00020547,2]
[372548818,1752679851346,-506.45,0.00020547,2]
[372548819,1752679851356,-2438.56,0.00020547,2]
[372548820,1752679851366,-687.27,0.00020547,2]
[372548821,1752679851375,-460.0,0.00020547,2]
[372548822,1752679851385,-460.0,0.00020547,2]
[372548823,1752679851394,-521.65,0.00020547,2]
[372548824,1752679851404,-4147.13,0.00020547,2]
[372548825,1752679851414,-6962.62,0.00020547,2]
[372548826,1752679851424,-460.0,0.00020547,2]
[372548827,1752679851433,-460.0,0.00020547,2]
[372548828,1752679851443,-959.76,0.00020547,2]
[372548829,1752679851455,-460.0,0.00020547,2]
[372548830,1752679851465,-460.0,0.00020547,2]
[372548831,1752679851474,-2589.89,0.00020547,2]
[372548832,1752679851484,-3564.08,0.00020547,2]
[372548833,1752679851494,-460.0,0.00020547,2]
[372548834,1752679851503,-460.0,0.00020547,2]
[372548835,1752679851513,-1879.23,0.00020547,2]
[372548836,1752679851523,-1196.19,0.00020547,2]
[372548837,1752679851533,-460.0,0.00020547,2]
[372548838,1752679851543,-460.0,0.00020547,2]
[372548839,1752679851552,-13889.83,0.00020547,2]
[372548840,1752679851562,-2089.21,0.00020547,2]
[372548841,1752679851571,-182.54355713,0.00020547,2]
[372548842,1752679851581,-460.0,0.00020547,2]
[372548843,1752679851591,-460.0,0.00020547,2]
[372548844,1752679851600,-864.03,0.00020547,2]
[372548845,1752679851610,-464.03,0.00020547,2]
[372548846,1752679851620,-460.0,0.00020547,2]
[372548847,1752679851629,-460.0,0.00020547,2]
[372548848,1752679851639,-460.0,0.00020547,2]
[372548849,1752679851648,-460.0,0.00020547,2]
[372548850,1752679851659,-942.0,0.00020547,2]
[372548851,1752679851668,-460.0,0.00020547,2]
[372548852,1752679851683,-1156.65,0.00020547,2]
[372548853,1752679851692,-460.0,0.00020547,2]
[372548854,1752679851705,-564.35,0.00020547,2]
[372548855,1752679851715,-460.0,0.00020547,2]
[372548856,1752679851724,-460.0,0.00020547,2]
[372548857,1752679851733,-5710.44,0.00020547,2]
[372548858,1752679851743,-9435.4,0.00020547,2]
[372548859,1752679851755,-460.0,0.00020547,2]
[372548860,1752679851769,-460.0,0.00020547,2]
[372548861,1752679851780,-1063.71,0.00020547,2]
[372548862,1752679851791,-460.0,0.00020547,2]
[372548863,1752679851801,-4062.86,0.00020547,2]
[372548864,1752679851811,-460.0,0.00020547,2]
[372548865,1752679851820,-460.0,0.00020547,2]
[372548866,1752679851830,-460.0,0.00020547,2]
[372548867,1752679851840,-1067.68,0.00020547,2]
[372548868,1752679851850,-1081.66,0.00020547,2]
[372548869,1752679851860,-801.73,0.00020547,2]
[372548870,1752679851870,-460.0,0.00020547,2]
[372548871,1752679851880,-460.0,0.00020547,2]
[372548872,1752679851890,-801.73,0.00020547,2]
[372548873,1752679851899,-662.38,0.00020547,2]
[372548874,1752679851909,-652.86,0.00020547,2]
[372548875,1752679851919,-460.0,0.00020547,2]
[372548876,1752679851928,-1058.85,0.00020547,2]
[372548877,1752679851938,-917.58,0.00020547,2]
[372548878,1752679851950,-5295.6,0.00020547,2]
[372548879,1752679851959,-4731.5,0.00020547,2]
[372548880,1752679851969,-1895.02,0.00020547,2]
[372548881,1752679851978,-460.0,0.00020547,2]
[372548882,1752679851988,-3263.9,0.00020547,2]
[372548883,1752679851998,-2186.29,0.00020547,2]
[372548884,1752679852008,-460.0,0.00020547,2]
[372548885,1752679852018,-234.34,0.00020547,2]
[372548886,1752679852028,-5028.57,0.00020547,2]
[372548887,1752679852038,-460.0,0.00020547,2]
[372548888,1752679852048,-582.88,0.00020547,2]
[372548889,1752679852059,-460.0,0.00020547,2]
[372548890,1752679852068,-469.31,0.00020547,2]
[372548891,1752679852079,-1167.8,0.00020547,2]
[372548892,1752679852088,-367.52,0.00020547,2]
[372548893,1752679852101,-1440.99,0.00020547,2]
[372548894,1752679852111,-467.63,0.00020547,2]
[372548895,1752679852121,-1586.13,0.00020547,2]
[372548896,1752679852131,-541.03,0.00020547,2]
[372548897,1752679852141,-460.0,0.00020547,2]
[372548898,1752679852151,-150000.0,0.00020547,2]
[372548899,1752679852160,-150000.0,0.00020547,2]
[372548900,1752679852170,-150000.0,0.00020547,2]
[372548901,1752679852180,-1500.0,0.00020568,2]
[372548902,1752679852191,-500.0,0.00020573,2]
[372548903,1752679852203,-521.65630073,0.00020573,2]
[372548904,1752679852212,-500.0,0.00020573,2]
[372548905,1752679852222,-500.0,0.00020573,2]
[372548906,1752679852232,-500.0,0.00020573,2]
[372548907,1752679852242,-550.23130541,0.00020573,2]
[372548908,1752679852253,-500.0,0.00020573,2]
[372548909,1752679852263,-500.0,0.00020573,2]
[372548910,1752679852273,-500.0,0.00020573,2]
[372548911,1752679852285,-500.0,0.00020573,2]
[372548912,1752679852295,-500.0,0.00020573,2]
[372548913,1752679852304,-500.0,0.00020573,2]
[372548914,1752679852314,-500.0,0.00020573,2]
[372548915,1752679852324,-501.27639441,0.00020573,2]
[372548916,1752679852334,-619.6777069,0.00020573,2]
[372548917,1752679852344,-344.66638024,0.00020573,2]
[372548918,1752679852353,-500.0,0.00020573,2]
[372548919,1752679852363,-500.0,0.00020573,2]
[372548920,1752679852372,-500.0,0.00020573,2]
[372548921,1752679852382,-500.0,0.00020573,2]
[372548922,1752679852392,-158.13031475,0.00020573,2]
[372548923,1752679852402,-500.0,0.00020573,2]
[372548924,1752679852411,-500.0,0.00020573,2]
[372548925,1752679852421,-500.0,0.00020573,2]
[372548926,1752679852431,-500.0,0.00020573,2]
[372548927,1752679852440,-500.0,0.00020573,2]
[372548928,1752679852452,-500.0,0.00020573,2]
[372548929,1752679852462,-500.0,0.00020573,2]
[372548930,1752679852471,-500.0,0.00020573,2]
[372548931,1752679852481,-151.0,0.000206,4]
[372548932,1752679852492,-25000.0,0.00020623,2]
[372548933,1752679852503,-217.07464614,0.00020623,2]
[372548934,1752679852513,-420.0,0.00020671,2]
[372548935,1752679852522,-420.0,0.00020671,2]
[372548936,1752679852532,-1680.0,0.00020673,2]
[372548937,1752679852542,-9021.18677679,0.00020728,3]
[372548938,1752679852552,-1000.0,0.00020766,2]
[372548939,1752679852562,-1680.0,0.00020772,2]
[372548940,1752679852572,-2000.0,0.00020816,2]
[372548941,1752679852581,-1476.77120229,0.00020816,2]
[372548942,1752679852591,-296.52145129,0.00020816,2]
[372548943,1752679852600,-1000.0,0.00020821,2]
[372548944,1752679852610,-1000.0,0.00020821,2]
[372548945,1752679852619,-1000.0,0.00020821,2]
[372548946,1752679852629,-1000.0,0.00020821,2]
[372548947,1752679852638,-924.46146884,0.00020821,2]
[372548948,1752679852648,-1000.0,0.00020821,2]
[372548949,1752679852658,-1000.0,0.00020821,2]
[372548950,1752679852667,-460.0,0.00020821,2]
[372548951,1752679852678,-460.0,0.00020821,2]
[372548952,1752679852691,-460.0,0.00020821,2]
[372548953,1752679852702,-414.89849863,0.00020821,2]
[372548954,1752679852712,-460.0,0.00020821,2]
[372548955,1752679852722,-460.0,0.00020821,2]
[372548956,1752679852733,-617.79,0.00020821,2]
[372548957,1752679852742,-460.0,0.00020821,2]
[372548958,1752679852751,-460.0,0.00020821,2]
[372548959,1752679852763,-460.0,0.00020821,2]
[372548960,1752679852774,-561.35,0.00020821,2]
[372548961,1752679852783,-460.0,0.00020821,2]
[372548962,1752679852793,-466.62,0.00020821,2]
[372548963,1752679852803,-779.28,0.00020821,2]
[372548964,1752679852812,-460.0,0.00020821,2]
[372548965,1752679852822,-460.0,0.00020821,2]
[372548966,1752679852832,-460.0,0.00020821,2]
[372548967,1752679852841,-939.24,0.00020821,2]
[372548968,1752679852851,-460.0,0.00020821,2]
[372548969,1752679852860,-460.0,0.00020821,2]
[372548970,1752679852870,-460.0,0.00020821,2]
[372548971,1752679852878,-460.0,0.00020821,2]
[372548972,1752679852888,-1185.85,0.00020821,2]
[372548973,1752679852898,-460.0,0.00020821,2]
[372548974,1752679852907,-460.0,0.00020821,2]
[372548975,1752679852918,-256.37380514,0.00020821,2]
[372548976,1752679852928,-460.0,0.00020821,2]
[372548977,1752679852937,-460.0,0.00020821,2]
[372548978,1752679852949,-579.22568825,0.00020821,2]
[372548979,1752679852959,-460.0,0.00020821,2]
[372548980,1752679852968,-460.0,0.00020821,2]
[372548981,1752679852978,-460.0,0.00020821,2]
[372548982,1752679852987,-1429.97,0.00020821,2]
[372548983,1752679852997,-460.0,0.00020821,2]
[372548984,1752679853006,-460.0,0.00020821,2]
[372548985,1752679853016,-844.39,0.00020821,2]
[372548986,1752679853026,-987.04,0.00020821,2]
[372548987,1752679853035,-594.46,0.00020821,2]
[372548988,1752679853044,-460.0,0.00020821,2]
[372548989,1752679853054,-185.64945012,0.00020821,2]
[372548990,1752679853063,-460.0,0.00020821,2]
[372548991,1752679853073,-460.0,0.00020821,2]
[372548992,1752679853082,-460.0,0.00020821,2]
[372548993,1752679853091,-5117.18,0.00020821,2]
[372548994,1752679853101,-778.65,0.00020821,2]
[372548995,1752679853111,-460.0,0.00020821,2]
[372548996,1752679853120,-10006.83,0.00020821,2]
[372548997,1752679853130,-471.95,0.00020821,2]
[372548998,1752679853139,-506.45,0.00020821,2]
[372548999,1752679853148,-2438.56,0.00020821,2]
[372549000,1752679853158,-687.27,0.00020821,2]
[372549001,1752679853167,-460.0,0.00020821,2]
[372549002,1752679853176,-460.0,0.00020821,2]
[372549003,1752679853186,-521.65,0.00020821,2]
[372549004,1752679853195,-4147.13,0.00020821,2]
[372549005,1752679853206,-6962.62,0.00020821,2]
[372549006,1752679853216,-460.0,0.00020821,2]
[372549007,1752679853226,-460.0,0.00020821,2]
[372549008,1752679853235,-959.76,0.00020821,2]
[372549009,1752679853245,-460.0,0.00020821,2]
[372549010,1752679853254,-460.0,0.00020821,2]
[372549011,1752679853264,-2589.89,0.00020821,2]
[372549012,1752679853273,-3564.08,0.00020821,2]
[372549013,1752679853284,-460.0,0.00020821,2]
[372549014,1752679853293,-460.0,0.00020821,2]
[372549015,1752679853303,-1879.23,0.00020821,2]
[372549016,1752679853313,-1196.19,0.00020821,2]
[372549017,1752679853322,-460.0,0.00020821,2]
[372549018,1752679853333,-175.12292489,0.00020821,2]
[372549019,1752679853342,-13889.83,0.00020821,2]
[372549020,1752679853351,-2089.21,0.00020821,2]
[372549021,1752679853361,-460.0,0.00020821,2]
[372549022,1752679853371,-460.0,0.00020821,2]
[372549023,1752679853381,-864.03,0.00020821,2]
[372549024,1752679853392,-464.03,0.00020821,2]
[372549025,1752679853401,-460.0,0.00020821,2]
[372549027,1752679853411,-460.0,0.00020821,2]
[372549028,1752679853631,-460.0,0.00020821,2]
[372549029,1752679853641,-460.0,0.00020821,2]
[372549030,1752679853651,-942.0,0.00020821,2]
[372549031,1752679853661,-460.0,0.00020821,2]
[372549032,1752679853671,-1156.65,0.00020821,2]
[372549033,1752679853683,-460.0,0.00020821,2]
[372549034,1752679853694,-564.35,0.00020821,2]
[372549035,1752679853706,-460.0,0.00020821,2]
[372549036,1752679853716,-460.0,0.00020821,2]
[372549037,1752679853729,-5710.44,0.00020821,2]
[372549038,1752679853739,-9435.4,0.00020821,2]
[372549039,1752679853748,-460.0,0.00020821,2]